fUSD/lending_fUSD_20251129
["ID","MTS","AMOUNT","RATE_DAILY","PERIOD"]
[395109576,1764444643904,-207.71038414,0.00014715,2]
[395109577,1764444643914,-150.0,0.00014715,2]
[395109578,1764444643923,-150.0,0.00014715,2]
[395109579,1764444643933,-500.0,0.00014715,2]
[395109580,1764444643942,-500.0,0.00014715,2]
[395109581,1764444643952,-464.0,0.00014715,2]
[395109582,1764444643961,-3311.0,0.00014735,2]
[395109583,1764444643971,-151.0,0.00014737,2]
[395109584,1764444643980,-151.0,0.00014737,2]
[395109585,1764444643989,-151.0,0.00014737,2]
[395109586,1764444643999,-151.0,0.00014737,2]
[395109587,1764444644008,-199.85578219,0.00014737,2]
[395109588,1764444644018,-151.0,0.00014737,2]
[395109589,1764444644027,-151.0,0.00014737,2]
[395109590,1764444644036,-294.531266,0.00014737,2]
[395109591,1764444644045,-151.0,0.00014737,2]
[395109592,1764444644055,-151.0,0.00014737,2]
[395109593,1764444644064,-151.0,0.00014737,2]
[395109594,1764444644074,-151.0,0.00014737,2]
[395109595,1764444644083,-284.81487,0.00014737,2]
[395109596,1764444644093,-157.334218,0.00014737,2]
[395109597,1764444644102,-240.524365,0.00014737,2]
[395109598,1764444644112,-240.524365,0.00014737,2]
[395109599,1764444644121,-151.0,0.00014737,2]
[395109600,1764444644131,-240.524365,0.00014737,2]
[395109601,1764444644141,-151.0,0.00014737,2]
[395109602,1764444644151,-335.015099,0.00014737,2]
[395109603,1764444644160,-240.524365,0.00014737,2]
[395109604,1764444644170,-151.0,0.00014737,2]
[395109605,1764444644179,-335.015099,0.00014737,2]
[395109606,1764444644189,-174.247594,0.00014737,2]
[395109607,1764444644198,-151.0,0.00014737,2]
[395109608,1764444644208,-335.015099,0.00014737,2]
[395109609,1764444644217,-335.015099,0.00014737,2]
[395109610,1764444644227,-151.0,0.00014737,2]
[395109611,1764444644236,-200.0,0.00014746,2]
[395109612,1764444644246,-1014.0,0.00014759,2]
[395109613,1764444644255,-3699.0,0.00014762,2]
[395109614,1764444644264,-1014.0,0.00014772,2]
[395109615,1764444644274,-993.01,0.00014774,2]
[395109616,1764444644283,-1014.0,0.00014775,2]
[395109617,1764444644292,-9955.0,0.0001479,2]
[395109618,1764444644302,-500.0,0.00014799,2]
[395109619,1764444644311,-500.0,0.00014799,2]
[395109620,1764444644321,-563.62196302,0.00014799,2]
[395109621,1764444644330,-500.0,0.00014799,2]
[395109622,1764444644339,-600.0,0.00014799,2]
[395109623,1764444644348,-500.0,0.00014799,2]
[395109624,1764444644357,-151.0,0.00014799,2]
[395109625,1764444644366,-151.0,0.00014799,2]
[395109626,1764444644376,-151.0,0.00014799,2]
[395109627,1764444644385,-151.0,0.00014799,2]
[395109628,1764444644396,-151.0,0.00014799,2]
[395109629,1764444644405,-151.0,0.00014799,2]
[395109630,1764444644415,-151.0,0.00014799,2]
[395109631,1764444644424,-151.0,0.00014799,2]
[395109632,1764444644433,-151.0,0.00014799,2]
[395109633,1764444644442,-151.0,0.00014799,2]
[395109634,1764444644451,-205.0135,0.00014799,2]
[395109635,1764444644460,-151.0,0.00014799,2]
[395109636,1764444644469,-205.0135,0.00014799,2]
[395109637,1764444644479,-205.0135,0.00014799,2]
[395109638,1764444644488,-205.01349,0.00014799,2]
[395109639,1764444644497,-173.86988,0.00014799,2]
[395109640,1764444644507,-151.0,0.00014799,2]
[395109641,1764444644516,-151.0,0.00014799,2]
[395109642,1764444644526,-151.0,0.00014799,2]
[395109643,1764444644535,-155.075004,0.00014799,2]
[395109644,1764444644545,-151.0,0.00014799,2]
[395109645,1764444644554,-151.0,0.00014799,2]
[395109646,1764444644564,-151.0,0.00014799,2]
[395109647,1764444644574,-151.0,0.00014799,2]
[395109648,1764444644583,-151.0,0.00014799,2]
[395109649,1764444644592,-201.498864,0.00014799,2]
[395109650,1764444644602,-151.0,0.00014799,2]
[395109651,1764444644612,-151.0,0.00014799,2]
[395109652,1764444644621,-151.0,0.00014799,2]
[395109653,1764444644630,-151.0,0.00014799,2]
[395109654,1764444644640,-151.0,0.00014799,2]
[395109655,1764444644650,-330.33,0.00014799,2]
[395109656,1764444644659,-7358.64178323,0.000148,2]
[395109657,1764444644668,-151.0,0.00014804,2]
[395109658,1764444644677,-151.0,0.00014804,2]
[395109659,1764444644687,-151.0,0.00014804,2]
[395109660,1764444644696,-223.248671,0.00014804,2]
[395109661,1764444644706,-151.0,0.00014804,2]
[395109662,1764444644719,-169.771723,0.00014804,2]
[395109663,1764444644728,-188.048313,0.00014804,2]
[395109664,1764444644738,-151.0,0.00014804,2]
[395109665,1764444644748,-151.0,0.00014804,2]
[395109666,1764444644758,-151.0,0.00014804,2]
[395109667,1764444644768,-151.0,0.00014804,2]
[395109668,1764444644931,-151.0,0.00014804,2]
[395109669,1764444644940,-151.0,0.00014804,2]
[395109670,1764444644950,-183.282224,0.00014804,2]
[395109671,1764444644960,-151.0,0.00014804,2]
[395109672,1764444644969,-151.0,0.00014804,2]
[395109673,1764444644979,-151.0,0.00014804,2]
[395109674,1764444644988,-151.0,0.00014804,2]
[395109675,1764444644998,-151.0,0.00014804,2]
[395109676,1764444645007,-151.0,0.00014804,2]
[395109677,1764444645017,-151.0,0.00014804,2]
[395109678,1764444645027,-151.0,0.00014804,2]
[395109679,1764444645036,-151.0,0.00014804,2]
[395109680,1764444645046,-151.0,0.00014804,2]
[395109681,1764444645055,-151.0,0.00014804,2]
[395109682,1764444645064,-245.121316,0.00014804,2]
[395109683,1764444645073,-151.0,0.00014804,2]
[395109684,1764444645083,-151.0,0.00014804,2]
[395109685,1764444645092,-217.284164,0.00014804,2]
[395109686,1764444645102,-151.0,0.00014804,2]
[395109687,1764444645111,-416.484381,0.00014804,2]
[395109688,1764444645120,-416.484381,0.00014804,2]
[395109689,1764444645130,-416.484381,0.00014804,2]
[395109690,1764444645140,-416.484381,0.00014804,2]
[395109691,1764444645149,-416.484381,0.00014804,2]
[395109692,1764444645159,-416.484381,0.00014804,2]
[395109693,1764444645168,-416.484381,0.00014804,2]
[395109694,1764444645178,-416.484385,0.00014804,2]
[395109695,1764444645187,-246.055036,0.00014804,2]
[395109696,1764444645197,-246.055036,0.00014804,2]
[395109697,1764444645206,-246.055036,0.00014804,2]
[395109698,1764444645215,-246.055036,0.00014804,2]
[395109699,1764444645224,-246.055036,0.00014804,2]
[395109700,1764444645234,-246.055036,0.00014804,2]
[395109701,1764444645243,-246.055036,0.00014804,2]
[395109702,1764444645252,-246.055034,0.00014804,2]
[395109703,1764444645261,-151.0,0.00014804,2]
[395109704,1764444645271,-151.0,0.00014804,2]
[395109705,1764444645280,-151.0,0.00014804,2]
[395109706,1764444645290,-151.0,0.00014804,2]
[395109707,1764444645299,-151.0,0.00014804,2]
[395109708,1764444645308,-151.0,0.00014804,2]
[395109709,1764444645318,-200.955925,0.00014804,2]
[395109710,1764444645328,-151.0,0.00014804,2]
[395109711,1764444645337,-151.0,0.00014804,2]
[395109712,1764444645347,-151.0,0.00014804,2]
[395109713,1764444645356,-295.320348,0.00014804,2]
[395109714,1764444645365,-151.0,0.00014804,2]
[395109715,1764444645375,-151.0,0.00014804,2]
[395109716,1764444645385,-151.0,0.00014804,2]
[395109717,1764444645396,-151.0,0.00014804,2]
[395109718,1764444645405,-151.0,0.00014804,2]
[395109719,1764444645415,-151.0,0.00014804,2]
[395109720,1764444645424,-151.0,0.00014804,2]
[395109721,1764444645433,-151.0,0.00014804,2]
[395109722,1764444645442,-151.0,0.00014804,2]
[395109723,1764444645452,-151.0,0.00014804,2]
[395109724,1764444645462,-167.449438,0.00014804,2]
[395109725,1764444645473,-215.878377,0.00014804,2]
[395109726,1764444645483,-151.0,0.00014804,2]
[395109727,1764444645492,-253.100529,0.00014804,2]
[395109728,1764444645501,-151.0,0.00014804,2]
[395109729,1764444645510,-151.0,0.00014804,2]
[395109730,1764444645519,-240.524365,0.00014804,2]
[395109731,1764444645529,-240.524365,0.00014804,2]
[395109732,1764444645538,-240.524365,0.00014804,2]
[395109733,1764444645548,-240.524365,0.00014804,2]
[395109734,1764444645557,-151.0,0.00014804,2]
[395109735,1764444645566,-151.0,0.00014804,2]
[395109736,1764444645575,-240.524365,0.00014804,2]
[395109737,1764444645583,-240.524365,0.00014804,2]
[395109738,1764444645593,-151.0,0.00014804,2]
[395109739,1764444645602,-151.0,0.00014804,2]
[395109740,1764444645612,-335.015099,0.00014804,2]
[395109741,1764444645621,-240.524365,0.00014804,2]
[395109742,1764444645631,-335.015099,0.00014804,2]
[395109743,1764444645639,-151.0,0.00014804,2]
[395109744,1764444645649,-240.524366,0.00014804,2]
[395109745,1764444645659,-151.0,0.00014804,2]
[395109746,1764444645668,-335.015099,0.00014804,2]
[395109747,1764444645678,-335.015099,0.00014804,2]
[395109748,1764444645687,-258.636808,0.00014804,2]
[395109749,1764444645697,-335.015099,0.00014804,2]
[395109750,1764444645707,-335.015099,0.00014804,2]
[395109751,1764444645719,-335.015099,0.00014804,2]
[395109752,1764444645729,-335.015104,0.00014804,2]
[395109753,1764444645739,-151.0,0.00014804,2]
[395109754,1764444645748,-300.0,0.00014804,2]
[395109755,1764444645759,-334.5472959,0.00014804,2]
[395109756,1764444645768,-1000.0,0.00014804,2]
[395109757,1764444645778,-5702.71425951,0.00014804,2]
[395109758,1764444645788,-1000.0,0.00014804,2]
[395109759,1764444645797,-1000.0,0.00014804,2]
[395109760,1764444645807,-1000.0,0.00014804,2]
[395109761,1764444645817,-1000.0,0.00014804,2]
[395109762,1764444645827,-1000.0,0.00014804,2]
[395109763,1764444645836,-1000.0,0.00014804,2]
[395109764,1764444645846,-1000.0,0.00014804,2]
[395109765,1764444645855,-1000.0,0.00014804,2]
[395109766,1764444645865,-1000.0,0.00014804,2]
[395109767,1764444645874,-1000.0,0.00014804,2]
[395109768,1764444645884,-553.64373807,0.00014804,2]
[395109769,1764444645893,-669.64325399,0.00014804,2]
[395109770,1764444645903,-500.0,0.00014804,2]
[395109771,1764444645913,-500.0,0.00014804,2]
[395109772,1764444645922,-151.0,0.00014804,2]
[395109773,1764444645931,-500.0,0.00014804,2]
[395109774,1764444645941,-151.0,0.00014804,2]
[395109775,1764444645950,-151.0,0.00014804,2]
[395109776,1764444645960,-500.0,0.00014804,2]
[395109777,1764444645969,-151.0,0.00014804,2]
[395109778,1764444645979,-500.0,0.00014804,2]
[395109779,1764444645989,-500.0,0.00014804,2]
[395109780,1764444645998,-151.0,0.00014804,2]
[395109781,1764444646007,-500.0,0.00014804,2]
[395109782,1764444646017,-500.0,0.00014804,2]
[395109783,1764444646026,-277.50242414,0.00014804,2]
[395109784,1764444646035,-500.0,0.00014804,2]
[395109785,1764444646045,-500.0,0.00014804,2]
[395109786,1764444646056,-500.0,0.00014804,2]
[395109787,1764444646065,-500.0,0.00014804,2]
[395109788,1764444646074,-500.0,0.00014804,2]
[395109789,1764444646084,-500.0,0.00014804,2]
[395109790,1764444646093,-500.0,0.00014804,2]
[395109791,1764444646103,-475.70981304,0.00014804,2]
[395109792,1764444646112,-500.0,0.00014804,2]
[395109793,1764444646122,-620.0,0.00014804,2]
[395109794,1764444646131,-500.0,0.00014804,2]
[395109795,1764444646140,-578.20924308,0.00014804,2]
[395109796,1764444646149,-500.0,0.00014804,2]
[395109797,1764444646159,-500.0,0.00014804,2]
[395109798,1764444646169,-500.0,0.00014804,2]
[395109799,1764444646178,-499.97,0.00014804,2]
[395109800,1764444646188,-8000.0,0.00014804,2]
[395109801,1764444646198,-8000.0,0.00014804,2]
[395109802,1764444646207,-8000.0,0.00014804,2]
[395109803,1764444646217,-151.0,0.00014804,2]
[395109804,1764444646227,-8000.0,0.00014804,2]
[395109805,1764444646238,-151.0,0.00014804,2]
[395109806,1764444646247,-8000.0,0.00014804,2]
[395109807,1764444646257,-250.0,0.00014804,2]
[395109808,1764444646268,-250.0,0.00014804,2]
[395109809,1764444646277,-500.0,0.00014804,2]
[395109810,1764444646287,-250.0,0.00014804,2]
[395109811,1764444646296,-500.0,0.00014804,2]
[395109812,1764444646305,-250.0,0.00014804,2]
[395109814,1764444646314,-500.0,0.00014804,2]
[395109815,1764444646324,-250.0,0.00014804,2]
[395109816,1764444646333,-500.0,0.00014804,2]
[395109817,1764444646342,-250.0,0.00014804,2]
[395109818,1764444646351,-264.94161149,0.00014804,2]
[395109819,1764444646360,-500.0,0.00014804,2]
[395109821,1764444646369,-250.0,0.00014804,2]
[395109822,1764444646379,-500.0,0.00014804,2]
[395109823,1764444646388,-250.0,0.00014804,2]
[395109824,1764444646398,-500.0,0.00014804,2]
[395109825,1764444646407,-8000.0,0.00014804,2]
[395109826,1764444646417,-250.0,0.00014804,2]
[395109827,1764444646426,-500.0,0.00014804,2]
[395109828,1764444646435,-8000.0,0.00014804,2]
[395109829,1764444646445,-250.0,0.00014804,2]
[395109830,1764444646456,-8000.0,0.00014804,2]
[395109831,1764444646465,-250.0,0.00014804,2]
[395109833,1764444646474,-8000.0,0.00014804,2]
[395109835,1764444646484,-250.0,0.00014804,2]
[395109836,1764444646493,-8000.0,0.00014804,2]
[395109837,1764444646502,-250.0,0.00014804,2]
[395109838,1764444646512,-8000.0,0.00014804,2]
[395109839,1764444646522,-8000.0,0.00014804,2]
[395109840,1764444646531,-250.0,0.00014804,2]
[395109841,1764444646540,-250.0,0.00014804,2]
[395109842,1764444646550,-250.0,0.00014804,2]
[395109843,1764444646559,-250.0,0.00014804,2]
[395109844,1764444646568,-250.0,0.00014804,2]
[395109845,1764444646579,-250.0,0.00014804,2]
[395109846,1764444646588,-250.0,0.00014804,2]
[395109847,1764444646598,-250.0,0.00014804,2]
[395109848,1764444646607,-1000.0,0.00014804,2]
[395109849,1764444646617,-267.46074303,0.00014804,2]
[395109850,1764444646626,-250.0,0.00014804,2]
[395109851,1764444646636,-1000.0,0.00014804,2]
[395109852,1764444646646,-250.0,0.00014804,2]
[395109853,1764444646655,-1000.0,0.00014804,2]
[395109854,1764444646665,-250.0,0.00014804,2]
[395109855,1764444646675,-1000.0,0.00014804,2]
[395109856,1764444646684,-250.0,0.00014804,2]
[395109857,1764444646694,-1000.0,0.00014804,2]
[395109858,1764444646704,-1000.0,0.00014804,2]
[395109859,1764444646718,-1000.0,0.00014804,2]
[395109860,1764444646728,-1000.0,0.00014804,2]
[395109861,1764444646738,-1000.0,0.00014804,2]
[395109862,1764444646747,-1000.0,0.00014804,2]
[395109863,1764444646757,-1000.0,0.00014804,2]
[395109864,1764444646767,-1000.0,0.00014804,2]
[395109865,1764444646776,-151.0,0.00014804,2]
[395109866,1764444646785,-271.89568788,0.0001481,2]
[395109867,1764444646794,-250.0,0.00014815,2]
[395109868,1764444646804,-1014.0,0.00014817,2]
[395109869,1764444646814,-500.0,0.00014825,2]
[395109870,1764444646824,-6010.374305,0.00014832,2]
[395109871,1764444646833,-719.78727762,0.00014834,2]
[395109872,1764444646843,-797.0,0.00014852,2]
[395109873,1764444646852,-200.0,0.00014852,2]
[395109874,1764444646862,-500.0,0.00014852,2]
[395109875,1764444646871,-419.0,0.00014852,2]
[395109876,1764444646881,-300.0,0.00014852,2]
[395109877,1764444646890,-500.0,0.00014852,2]
[395109878,1764444646899,-150.0,0.00014852,2]
[395109879,1764444646908,-150.0,0.00014852,2]
[395109880,1764444646917,-300.0,0.00014852,2]
[395109881,1764444646928,-500.0,0.00014852,2]
[395109882,1764444646937,-464.0,0.00014852,2]
[395109883,1764444646946,-192.18,0.00014881,2]
[395109884,1764444646955,-500.0,0.00014884,2]
[395109885,1764444646965,-200.0,0.00014893,2]
[395109886,1764444646974,-958.74,0.000149,2]
[395109887,1764444646984,-225.21969723,0.000149,2]
[395109888,1764444646993,-3311.0,0.000149,2]
[395109889,1764444647009,-1014.0,0.00014916,2]
[395109890,1764444647025,-2318.0,0.00014955,2]
[395109891,1764444647047,-2318.0,0.00014975,2]
[395109892,1764444647058,-5847.1064067,0.00014981,2]
[395109893,1764444647067,-797.0,0.00014989,2]
[395109894,1764444647076,-500.0,0.00014989,2]
[395109895,1764444647086,-419.0,0.00014989,2]
[395109896,1764444647095,-243.30220278,0.00014989,2]
[395109897,1764444647105,-200.0,0.00014989,2]
[395109898,1764444647114,-200.0,0.00014989,2]
[395109899,1764444647123,-200.0,0.00014989,2]
[395109900,1764444647133,-464.0,0.00014989,2]
[395109901,1764444647143,-385.11426606,0.00015,2]
[395109902,1764444647152,-10516.13120553,0.00015,4]
[395109903,1764444647161,-1014.0,0.0001502,2]
[395109904,1764444647170,-2318.0,0.0001504,2]
[395109905,1764444647179,-200.0,0.00015042,2]
[395109906,1764444647188,-993.01,0.00015048,2]
[395109907,1764444647198,-2318.0,0.00015086,2]
[395109908,1764444647208,-7358.64178323,0.000151,2]
[395109909,1764444647217,-797.0,0.00015126,2]
[395109910,1764444647226,-500.0,0.00015126,2]
[395109911,1764444647235,-419.0,0.00015126,2]
[395109912,1764444647245,-464.0,0.00015126,2]
[395109913,1764444647255,-6010.374305,0.00015127,2]
[395109914,1764444647264,-200.0,0.00015193,2]
[395109915,1764444647273,-173.14708,0.0001526,2]
[395109916,1764444647282,-797.0,0.00015263,2]
[395109917,1764444647291,-550.44152871,0.00015263,2]
[395109918,1764444647300,-419.0,0.00015263,2]
[395109919,1764444647310,-464.0,0.00015263,2]
[395109920,1764444647321,-150.0,0.00015288,2]
[395109921,1764444647331,-150.0,0.00015288,2]
[395109922,1764444647340,-150.0,0.00015288,2]
[395109923,1764444647349,-150.0,0.00015288,2]
[395109924,1764444647358,-150.0,0.00015288,2]
[395109925,1764444647367,-150.0,0.00015288,2]
[395109926,1764444647376,-150.0,0.00015288,2]
[395109927,1764444647385,-150.0,0.00015288,2]
[395109928,1764444647396,-150.0,0.00015288,2]
[395109929,1764444647405,-150.0,0.00015288,2]
[395109930,1764444647414,-2318.0,0.00015291,2]
[395109931,1764444647423,-2318.0,0.00015303,2]
[395109932,1764444647433,-300.0,0.00015315,2]
[395109933,1764444647443,-993.01,0.00015322,2]
[395109934,1764444647452,-719.78727762,0.00015326,2]
[395109935,1764444647463,-1000.0,0.00015352,2]
[395109936,1764444647474,-232.49252269,0.00015352,2]
[395109937,1764444647484,-500.0,0.00015364,2]
[395109938,1764444647494,-1600.0,0.00015389,2]
[395109939,1764444647503,-984.4121911,0.00015389,2]
[395109940,1764444647512,-797.0,0.000154,2]
[395109941,1764444647522,-419.0,0.000154,2]
[395109942,1764444647532,-464.0,0.000154,2]
[395109943,1764444647541,-1374.0,0.000154,2]
[395109944,1764444647550,-7358.64178323,0.000154,2]
[395109945,1764444647560,-2318.0,0.00015419,2]
[395109946,1764444647570,-6010.374305,0.00015423,2]
[395109947,1764444647580,-2318.0,0.00015434,2]
[395109948,1764444647589,-61394.677645,0.0001547,2]
[395109949,1764444647599,-1000.0,0.000155,2]
[395109950,1764444647608,-150.0,0.0001553,2]
[395109951,1764444647617,-797.0,0.00015537,2]
[395109952,1764444647627,-419.0,0.00015537,2]
[395109953,1764444647637,-464.0,0.00015537,2]
[395109954,1764444647646,-150.0,0.00015571,2]
[395109955,1764444647656,-150.0,0.00015571,2]
[395109956,1764444647666,-150.0,0.00015571,2]
[395109957,1764444647678,-993.01,0.00015596,2]
[395109958,1764444647688,-150.0,0.00015627,2]
[395109959,1764444647698,-420.0,0.00015657,2]
[395109960,1764444647711,-797.0,0.00015674,2]
[395109961,1764444647728,-419.0,0.00015674,2]
[395109962,1764444647740,-464.0,0.00015674,2]
[395109963,1764444647750,-13699.0042552,0.00015699,2]
[395109964,1764444647761,-1410.0,0.000157,2]
[395109965,1764444647770,-7358.64178323,0.000157,2]
[395109966,1764444647780,-6010.374305,0.00015718,2]
[395109967,1764444647790,-195.0,0.00015725,2]
[395109968,1764444647799,-193.0,0.00015725,2]
[395109969,1764444647809,-250.0,0.00015725,2]
[395109970,1764444647819,-150.32875877,0.00015725,2]
[395109971,1764444647828,-250.0,0.00015725,2]
[395109972,1764444647838,-300.0,0.00015725,2]
[395109973,1764444647847,-1680.0,0.00015726,2]
[395109974,1764444647856,-195.0,0.00015728,2]
[395109975,1764444647865,-250.0,0.00015728,2]
[395109976,1764444647875,-150.0,0.00015773,2]
[395109977,1764444647886,-500.0,0.00015789,2]
[395109978,1764444647897,-591.31867425,0.00015789,2]
[395109979,1764444647906,-797.0,0.00015811,2]
[395109980,1764444647916,-419.0,0.00015811,2]
[395109981,1764444647926,-464.0,0.00015811,2]
[395109982,1764444647936,-150.0,0.00015854,2]
[395109983,1764444647946,-150.0,0.00015854,2]
[395109984,1764444647955,-150.0,0.00015854,2]
[395109985,1764444647964,-150.0,0.00015854,2]
[395109986,1764444647974,-150.0,0.00015854,2]
[395109987,1764444647983,-993.01,0.0001587,2]
[395109988,1764444647993,-500.0,0.00015899,2]
[395109989,1764444648002,-500.27300015,0.00015899,2]
[395109990,1764444648011,-1000.0,0.000159,2]
[395109991,1764444648024,-797.0,0.00015948,2]
[395109992,1764444648034,-419.0,0.00015948,2]
[395109993,1764444648044,-464.0,0.00015948,2]
[395109994,1764444648053,-150.0,0.00015967,2]
[395109995,1764444648063,-500.71814226,0.00015973,2]
[395109996,1764444648072,-500.0,0.00015973,2]
[395109997,1764444648082,-500.0,0.00015973,2]
[395109998,1764444648091,-494.11980425,0.00015973,2]
[395109999,1764444648103,-500.0,0.00015973,2]
[395110000,1764444648113,-501.65327585,0.00015973,2]
[395110001,1764444648123,-500.0,0.00015973,2]
[395110002,1764444648132,-500.0,0.00015973,2]
[395110003,1764444648143,-500.0,0.00015999,2]
[395110004,1764444648154,-115035.56291492,0.00016,4]
[395110005,1764444648164,-481.72322933,0.00016,12]
[395110006,1764444648174,-79856.39425607,0.00016,2]
[395110007,1764444648184,-7358.64178323,0.00016,2]
[395110008,1764444648193,-6010.374305,0.00016014,2]
[395110009,1764444648202,-150.0,0.00016016,2]
[395110010,1764444648212,-166.66,0.00016049,2]
[395110011,1764444648222,-797.0,0.00016085,2]
[395110012,1764444648231,-419.0,0.00016085,2]
[395110013,1764444648241,-464.0,0.00016085,2]
[395110014,1764444648250,-2664.0,0.00016097,2]
[395110015,1764444648259,-2664.0,0.00016129,2]
[395110016,1764444648268,-150.0,0.00016137,2]
[395110017,1764444648278,-150.0,0.00016137,2]
[395110018,1764444648287,-150.0,0.00016137,2]
[395110019,1764444648296,-150.0,0.00016137,2]
[395110020,1764444648308,-993.01,0.00016144,2]
[395110021,1764444648318,-425.05260677,0.00016149,2]
[395110022,1764444648330,-1000.0,0.00016161,2]
[395110023,1764444648339,-311.1,0.00016173,2]
[395110024,1764444648349,-277.35679052,0.00016173,2]
[395110025,1764444648358,-172.72143704,0.00016186,5]
[395110026,1764444648368,-5000.00574173,0.000162,5]
[395110027,1764444648377,-797.0,0.00016222,2]
[395110028,1764444648387,-419.0,0.00016222,2]
[395110029,1764444648397,-464.0,0.00016222,2]
[395110030,1764444648406,-192.18,0.00016257,2]
[395110031,1764444648416,-330.33,0.00016258,2]
[395110032,1764444648425,-150.0,0.00016258,2]
[395110033,1764444648435,-173.14709,0.0001626,2]
[395110034,1764444648444,-7358.64178323,0.000163,2]
[395110035,1764444648453,-150.0,0.00016307,2]
[395110036,1764444648462,-6010.374305,0.00016309,2]
[395110037,1764444648472,-200.0,0.0001634,2]
[395110038,1764444648481,-797.0,0.00016359,2]
[395110039,1764444648491,-419.0,0.00016359,2]
[395110040,1764444648501,-464.0,0.00016359,2]
[395110041,1764444648511,-1000.0,0.000164,2]
[395110042,1764444648520,-993.06,0.00016418,2]
[395110043,1764444648530,-150.0,0.0001642,2]
[395110044,1764444648540,-150.0,0.0001642,2]
[395110045,1764444648550,-150.0,0.0001642,2]
[395110046,1764444648560,-150.0,0.0001642,2]
[395110047,1764444648570,-150.0,0.0001642,2]
[395110048,1764444648580,-157.62,0.00016425,2]
[395110049,1764444648589,-190.17,0.00016438,2]
[395110050,1764444648599,-285.27,0.00016438,2]
[395110051,1764444648608,-150.0,0.00016438,2]
[395110052,1764444648619,-500.0,0.00016438,2]
[395110053,1764444648629,-416.08725444,0.00016438,2]
[395110054,1764444648638,-500.0,0.00016438,2]
[395110055,1764444648649,-500.0,0.00016438,2]
[395110056,1764444648658,-500.0,0.00016438,2]
[395110057,1764444648668,-500.0,0.00016438,2]
[395110058,1764444648678,-358.29477948,0.00016438,2]
[395110059,1764444648688,-500.0,0.00016438,2]
[395110060,1764444648698,-500.0,0.00016438,2]
[395110061,1764444648708,-500.0,0.00016438,2]
[395110062,1764444648722,-500.0,0.00016438,2]
[395110063,1764444648733,-500.0,0.00016438,2]
[395110064,1764444648743,-500.0,0.00016438,2]
[395110065,1764444648755,-500.0,0.00016438,2]
[395110066,1764444648765,-151.0,0.00016438,2]
[395110067,1764444648774,-151.0,0.00016438,2]
[395110068,1764444648785,-12638.6,0.00016438,2]
[395110069,1764444648797,-300.0,0.00016438,3]
[395110070,1764444648807,-300.0,0.00016438,3]
[395110071,1764444648817,-300.0,0.00016438,3]
[395110072,1764444648827,-427.45964135,0.00016441,2]
[395110073,1764444648838,-1000.0,0.00016448,2]
[395110074,1764444648848,-797.0,0.00016496,2]
[395110075,1764444648858,-419.0,0.00016496,2]
[395110076,1764444648868,-464.0,0.00016496,2]
[395110077,1764444648879,-150.0,0.00016501,2]
[395110078,1764444648889,-3091.0,0.00016504,2]
[395110079,1764444648900,-1000.0,0.00016521,2]